fUSD/lending_fUSD_20240614
["ID","MTS","AMOUNT","RATE_DAILY","PERIOD"]
[329443625,1718350422059,-1479.12456021,0.00010349,2]
[329443626,1718350429558,4119.19973206,0.00022,30]
[329443627,1718350462644,2021.01853158,9.928e-05,2]
[329443628,1718350462703,32932.08159789,9.928e-05,2]
[329443629,1718350470472,150.0,6.94e-05,2]
[329443630,1718350470552,150.0,6.94e-05,2]
[329443631,1718350470592,150.0,6.94e-05,2]
[329443632,1718350470640,150.0,6.94e-05,2]
[329443633,1718350470676,150.0,6.94e-05,2]
[329443634,1718350470714,150.0,6.94e-05,2]
[329443635,1718350470757,150.0,6.94e-05,2]
[329443636,1718350470790,150.0,6.94e-05,2]
[329443637,1718350470849,2595.5553826,6.94e-05,2]
[329443665,1718351027979,14965.582558,6.94e-05,2]
[329443666,1718351028034,25035.389882,6.94e-05,2]
[329443667,1718351364373,-171.69280167,9.981e-05,2]
[329443668,1718351367179,-1829.48752056,9.981e-05,2]
[329443669,1718351367216,-400.0,9.981e-05,2]
[329443670,1718351367249,-163.85,9.982e-05,2]
[329443671,1718351367295,-507.91849226,0.00010047,2]
[329443672,1718351374257,-1493.26182997,0.00010047,2]
[329443673,1718351374346,-158.67658596,0.00010048,2]
[329443674,1718351374398,-292.36558122,0.00010048,2]
[329443675,1718351374438,-150.0,0.00010219,2]
[329443676,1718351374493,-150.0,0.00010248,2]
[329443677,1718351374574,-1969.3443,0.00010249,2]
[329443678,1718351374631,-598.54,0.00010453,2]
[329443686,1718351434576,-210.0,0.00011273,2]
[329443687,1718351434590,-242.22,0.00012024,2]
[329443688,1718351434600,-499.39616258,0.00012244,2]
[329443689,1718351435302,-247.76383742,0.00012244,2]
[329443690,1718351435312,-500.0,0.00012309,2]
[329443691,1718351435354,-150.99,0.00012309,2]
[329443692,1718351435365,-150.0,0.00012342,2]
[329443693,1718351435380,-250.0,0.00012576,2]
[329443694,1718351435395,-598.54,0.00012716,2]
[329443695,1718351435412,-533.27,0.00012757,2]
[329443696,1718351435431,-1948.14,0.00012769,2]
[329443697,1718351435441,-2451.28,0.00012821,2]
[329443698,1718351435458,-200.0,0.00012823,2]
[329443699,1718351435486,-3053.96397174,0.00012979,2]
[329443700,1718351435518,-711.24460022,0.0001298,2]
[329443701,1718351435553,-200.0,0.00013125,2]
[329443702,1718351435565,-156.91,0.00013699,2]
[329443703,1718351435598,-747.16,0.00013774,2]
[329443704,1718351435644,-155.0,0.00013797,2]
[329443705,1718351435665,-155.0,0.00013797,2]
[329443706,1718351435680,-177.56539034,0.00013797,2]
[329443707,1718351435693,-551.9435641,0.00013797,2]
[329443708,1718351435704,-155.0,0.00013797,2]
[329443709,1718351435715,-155.0,0.00013798,2]
[329443710,1718351435726,-3101.77582154,0.00013798,2]
[329443711,1718351435737,-3270.90831679,0.00013799,2]
[329443730,1718351441304,-3455.03242081,0.00013799,2]
[329443731,1718351441334,-4857.2568,0.00013799,2]
[329443732,1718351441360,-665.1992,0.00013799,2]
[329443733,1718351441374,-3934.5411,0.00013799,2]
[329443734,1718351441405,-4315.0453,0.00013799,2]
[329443735,1718351441418,-22539.4884,0.00013799,2]
[329443736,1718351441430,-299.90125798,0.00013799,2]
[329443737,1718351441441,-2158.38813,0.00013799,2]
[329443738,1718351441457,-204.46278,0.00013897,2]
[329443739,1718351441482,-510.24277774,0.00013897,2]
[329443740,1718351441493,-438.87479594,0.00013897,2]
[329443741,1718351441506,-525.68722811,0.00013897,2]
[329443742,1718351441517,-2370.1801588,0.00013897,2]
[329443743,1718351441538,-1465.51183518,0.00013897,2]
[329443744,1718351441552,-429.97845481,0.00013897,2]
[329443745,1718351441564,-158.67658596,0.00013899,2]
[329443746,1718351441594,-770.32356605,0.00013899,2]
[329443747,1718351441605,-179.38098978,0.000139,2]
[329443748,1718351441626,-166.50693192,0.000139,2]
[329443749,1718351441645,-6605.18724184,0.000139,2]
[329443750,1718351441657,-425.32891318,0.000139,2]
[329443751,1718351441668,-327.16831511,0.000139,2]
[329443752,1718351441696,-152.72,0.0001399,2]
[329443753,1718351441715,-503.92661283,0.00013997,2]
[329443754,1718351441752,-400.0,0.00013997,2]
[329443755,1718351441785,-1021.53612155,0.00013997,2]
[329443756,1718351441795,-163.41552073,0.00013998,2]
[329443757,1718351441829,-526.07634013,0.00013998,2]
[329443758,1718351441854,-155.76122936,0.00013999,2]
[329443759,1718351441865,-230201.91020971,0.00013999,2]
[329443760,1718351441876,-1426.11746437,0.00013999,5]
[329443761,1718351441886,-209.08499402,0.00013999,2]
[329443762,1718351441897,-1990.45339618,0.00013999,2]
[329443763,1718351441926,-151.0,0.00013999,2]
[329443764,1718351441944,-251.89772737,0.00013999,2]
[329443765,1718351441964,-184.659978,0.00013999,2]
[329443766,1718351441981,-151.0,0.00013999,2]
[329443767,1718351441994,-154.925343,0.00013999,2]
[329443768,1718351442007,-161.703363,0.00013999,2]
[329443771,1718351442032,-158.826008,0.00013999,2]
[329443773,1718351442064,-155.886668,0.00013999,2]
[329443774,1718351442075,-152.785627,0.00013999,2]
[329443776,1718351442087,-151.0,0.00013999,2]
[329443778,1718351442113,-151.0,0.00013999,2]
[329443780,1718351442124,-151.0,0.00013999,2]
[329443782,1718351442192,-151.0,0.00013999,2]
[329443783,1718351442216,-151.0,0.00013999,2]
[329443784,1718351442236,-156.77948,0.00013999,2]
[329443785,1718351442261,-151.0,0.00013999,2]
[329443786,1718351442276,-151.0,0.00013999,2]
[329443787,1718351442317,-155.598734,0.00013999,2]
[329443788,1718351442330,-151.0,0.00013999,2]
[329443789,1718351442352,-151.0,0.00013999,2]
[329443790,1718351442365,-151.733467,0.00013999,2]
[329443791,1718351442376,-151.0,0.00013999,2]
[329443792,1718351442390,-151.0,0.00013999,2]
[329443793,1718351442401,-151.0,0.00013999,2]
[329443794,1718351442413,-151.0,0.00013999,2]
[329443795,1718351442426,-515627.3901186,0.00014,2]
[329443796,1718351442450,-2104.93626584,0.00014,2]
[329443797,1718351442465,-1068.89864221,0.00014,2]
[329443833,1718351444763,-2075.21880814,0.000139,2]
[329443834,1718351444802,-2220.56185179,0.00014,2]
[329443835,1718351444819,-1737.35502401,0.00014,2]
[329443836,1718351444841,-356.69583525,0.00014,2]
[329443837,1718351444873,-802.23257426,0.00014,2]
[329443847,1718351447137,-1492.84004713,0.00013999,2]
[329443848,1718351447156,-2837.75621763,0.00014,2]
[329443849,1718351447169,-10535.3248,0.00014,2]
[329443850,1718351447220,-674.44,0.00014,2]
[329443851,1718351447811,-3939.70627734,0.00014,2]
[329443852,1718351447827,-412.83459833,0.00014,2]
[329443853,1718351448404,-318.58558634,0.00014,2]
[329443854,1718351448418,-148209.00549477,0.00014,2]
[329443855,1718351448431,-566.18888113,0.00014,2]
[329443856,1718351448447,-275.950685,0.00014,2]
[329443857,1718351448462,-33043.21578925,0.00014,2]
[329443858,1718351448505,-44221.83463274,0.00014,2]
[329443859,1718351448519,-976.920342,0.00014,2]
[329443860,1718351448534,-619.55428415,0.00014,2]
[329443861,1718351449021,-44513.45040144,0.00014,2]
[329443864,1718351449047,-569.11093972,0.00014,2]
[329443865,1718351449095,-2818.80991683,0.00014,2]
[329443866,1718351449110,-5373.89872731,0.00014,2]
[329443869,1718351449682,-505.93554272,0.00014,2]
[329443872,1718351450652,-103071.51108845,0.00014,2]
[329443873,1718351450669,-493.706,0.00014,2]
[329443874,1718351450693,-279.82539136,0.00014,2]
[329443875,1718351450764,-0.01104629,0.00014,2]
[329443892,1718352142380,8902.0,0.00028,90]
[329443894,1718352428270,-232.80994106,0.00012086,2]
[329443895,1718352554139,-281.53738357,0.00012085,2]
[329443922,1718352635411,-19578.90809627,0.00012084,2]
[329443923,1718352635428,-150.0,0.00012085,2]
[329443924,1718352635484,-2850.00737097,0.00012085,2]
[329443925,1718352635524,-17431.56806781,0.00012085,2]
[329443926,1718352635540,-343.69005894,0.00012086,2]
[329443927,1718352635586,-157.16271108,0.00013498,2]
[329443928,1718352635606,-250.0,0.00013508,2]
[329443929,1718352635666,-701.1076,0.00013598,2]
[329443930,1718352635696,-1298.08,0.00013745,2]
[329443931,1718352635728,-1798.65678,0.0001386,2]
[329443932,1718352635740,-448.29,0.00013896,2]
[329443933,1718352635759,-8825.1767996,0.000139,2]
[329443937,1718352640097,-13841.52764072,0.000139,2]
[329443939,1718352640808,-1000.51593,0.000139,2]
[329443940,1718352640828,-3145.12011062,0.000139,2]
[329443941,1718352640885,-512.92239275,0.000139,2]
[329443942,1718352640925,-27288.08,0.000139,2]
[329443943,1718352640958,-288.12424113,0.000139,2]
[329443946,1718352641430,-6926.84586915,0.000139,2]
[329443950,1718352641451,-3849.74969661,0.000139,2]
[329443977,1718352644881,-274.733615,0.000139,2]
[329443988,1718352645805,-1650.31387522,0.000139,2]
[329443989,1718352645940,-0.58202545,0.000139,2]
[329443990,1718352645969,-843.4,0.000139,2]
[329443991,1718352646012,-372.70819191,0.000139,2]
[329443992,1718352646025,-1319.0,0.000139,2]
[329443993,1718352646037,-6093.66810494,0.000139,2]
[329443994,1718352646553,-118146.5618069,0.000139,2]
[329443995,1718352646567,-2883.9904,0.000139,2]
[329443996,1718352646593,-11971.6003,0.000139,2]
[329443997,1718352646605,-674.03312025,0.000139,2]
[329443998,1718352646632,-1383.47920544,0.000139,2]
[329443999,1718352646644,-1206.59,0.0001399,2]
[329444000,1718352646657,-152.73,0.0001399,2]
[329444001,1718352646677,-2854.85718385,0.00013998,2]
[329444002,1718352646691,-1119.63003535,0.00013999,2]
[329444003,1718352646711,-413134.19656815,0.00014,2]
[329444008,1718352648080,-1441.11139158,0.00014,2]
[329444009,1718352649042,-9610.75403004,0.00012085,2]
[329444010,1718352649065,-995.56675282,0.00014,2]
[329444011,1718352649839,-737.24414461,0.00014,2]
[329444012,1718352649852,-33874.14595569,0.00014,2]
[329444014,1718352650609,-283.55260878,0.000139,2]
[329444015,1718352650625,-839.72252651,0.00013999,2]
[329444016,1718352650641,-13295.03851483,0.00014,2]
[329444036,1718353021647,-547.67,0.00012508,2]
[329444037,1718353021696,-3691.9,0.00013886,2]
[329444038,1718353021743,-500.0,0.00013887,2]
[329444039,1718353021801,-200.0,0.00013887,2]
[329444040,1718353021856,-500.0,0.00013888,2]
[329444041,1718353021914,-500.0,0.00013888,2]
[329444042,1718353021975,-200.0,0.00013888,2]
[329444043,1718353022027,-300.0,0.00013899,2]
[329444044,1718353022086,-6054.75497176,0.000139,2]
[329444045,1718353022142,-2223.9076,0.000139,2]
[329444046,1718353022176,-9962.9213,0.000139,2]
[329444047,1718353022213,-674.03312025,0.000139,2]
[329444048,1718353022265,-2883.9904,0.000139,2]
[329444049,1718353022306,-1383.47920544,0.000139,2]
[329444050,1718353022375,-327.16831511,0.000139,2]
[329444051,1718353022420,-1062.0,0.000139,2]
[329444052,1718353022460,-303.62131,0.00013973,2]
[329444053,1718353022504,-2854.85718385,0.00013999,2]
[329444054,1718353022610,-909.69940372,0.00013999,2]
[329444055,1718353024702,-116876.95952727,0.00014,2]
[329444061,1718353544026,10000.0,0.00028,90]
[329444063,1718353598414,361.918,0.00028,90]
[329444064,1718353621974,-633.69,0.00012044,2]
[329444065,1718353622016,-300.0,0.00013799,2]
[329444066,1718353622068,-11971.6003,0.000138,2]
[329444067,1718353622273,-1234.0,0.000138,2]
[329444068,1718353622306,-118146.5618,0.000138,2]
[329444069,1718353622343,-570.97,0.00013838,2]
[329444070,1718353622371,-250.0,0.00013838,2]
[329444071,1718353622407,-158.37157743,0.00013899,2]
[329444072,1718353622445,-1794.83306975,0.00013899,2]
[329444073,1718353622503,-7500.0,0.000139,2]
[329444074,1718353622537,-43909.97325282,0.000139,2]
[329444082,1718353834002,-300.0,0.00013799,2]
[329444083,1718353834034,-572.51976406,0.0001386,2]
[329444084,1718353834056,-422.51649054,0.0001386,2]
[329444096,1718353840748,-958.6748054,0.0001386,2]
[329444097,1718353840768,-1043.8553946,0.000139,2]
[329444098,1718353841737,-796.44791203,0.000139,2]
[329444114,1718353845748,-176969.07484055,0.000139,2]
[329444115,1718353845770,-3250.4928,0.000139,2]
[329444116,1718353845795,-1411.28823105,0.000139,2]
[329444117,1718353845820,-164.51180693,0.000139,2]
[329444118,1718353845840,-327.00031382,0.000139,2]
[329444119,1718353845872,-2455.78515627,0.000139,2]
[329444120,1718353845883,-152.83,0.0001399,2]
[329444121,1718353845895,-152.83,0.0001399,2]
[329444122,1718353845907,-339.48661877,0.00013998,2]
[329444123,1718353845918,-682.27455279,0.00013999,2]
[329444124,1718353845931,-13280.26815615,0.00013999,2]
[329444125,1718353845960,-50419.70106214,0.00014,2]
[329444126,1718353846277,-402991.77427055,0.00014,2]
[329444127,1718353846318,-542.70878457,0.00014,2]
[329444128,1718353846341,-467.31889,0.00014,2]
[329444129,1718353846370,-2971.62397838,0.00014,2]
[329444130,1718353846391,-553527.66861994,0.00014,2]
[329444131,1718353846410,-1611.00544294,0.00014,2]
[329444132,1718353846452,-540801.54265535,0.00014,2]
[329444133,1718353847097,-2875.82477649,0.00014,2]
[329444134,1718353847150,-3405.91380266,0.00014,2]
[329444135,1718353847169,-2310.06028183,0.00014,2]
[329444144,1718353848006,-1482.93474898,0.00014,2]
[329444147,1718353848038,-635.74,0.00014,2]
[329444161,1718353848358,-2041.60141244,0.00014,2]
[329444162,1718353848372,-6035.49253852,0.00014,2]
[329444166,1718353849766,-1479.06618087,0.00014,2]
[329444173,1718353851625,-511.70591459,0.00013999,2]
[329444174,1718353851637,-488.97656574,0.00014,2]
[329444183,1718353852368,-457.29170079,0.00014,2]
[329444184,1718353852382,-6717.2,0.00014,2]
[329444185,1718353852397,-351.56071379,0.00014,2]
[329444186,1718353853111,-1211.45319428,0.00014,2]
[329444188,1718353853136,-27575.06446879,0.00014,2]
[329444191,1718353853168,-335.30570427,0.00014,2]
[329444241,1718353853835,-725.67226389,0.00014,2]
[329444243,1718353853853,-255.94907892,0.00014,2]
[329444244,1718353853866,-2343.36758848,0.00014,2]
[329444246,1718353853879,-283.2823812,0.00014,2]
[329444248,1718353853892,-3061.85124434,0.00014,2]
[329444251,1718353853917,-1263.49292951,0.00014,2]
[329444253,1718353853936,-33594.99999999,0.00014,2]
[329444255,1718353853953,-36433.99331724,0.00014,2]
[329444265,1718353854774,-2890.23972444,0.00014,2]
[329444267,1718353854788,-7148.8,0.00014,2]
[329444269,1718353854810,-602.34,0.00014,2]
[329444270,1718353854823,-428.80638184,0.00014,2]
[329444273,1718354011999,1292.36,0.00012968,2]
[329444275,1718354040947,-1338.56414391,0.00013296,2]
[329444276,1718354040981,-531.8764862,0.00013297,2]
[329444277,1718354041017,-317.97229242,0.00013298,2]
[329444278,1718354041051,-1304.18884834,0.00013298,2]
[329444279,1718354041128,-158.86276178,0.000137,2]
[329444280,1718354041159,-689.0,0.00013797,2]
[329444281,1718354041215,-453.71086425,0.00013798,2]
[329444282,1718354041266,-467.7598,0.000138,2]
[329444283,1718354041297,-5296.6213,0.000138,2]
[329444284,1718354041329,-212.227,0.000138,2]
[329444285,1718354041369,-4090.4465,0.000138,2]
[329444286,1718354041519,2319.61,0.00013699,2]
[329444287,1718354043618,453.71086425,0.00013295,2]
[329444288,1718354045243,5742.74648126,0.000118,2]
[329444289,1718354070655,150.0,6.94e-05,2]
[329444290,1718354078053,156.08413652,0.00012458,2]
[329444291,1718354082227,159.54,0.00013699,2]
[329444292,1718354118013,625.77511416,0.00013438,2]
[329444293,1718354118986,4166.839,0.00013787,2]
[329444294,1718354138280,250.0,0.00012972,2]
[329444295,1718354151155,24675.60632446,0.00013787,2]
[329444296,1718354157868,663.5,0.00011054,2]
[329444297,1718354158315,663.5,0.00013318,2]
[329444298,1718354169268,20265.49808245,0.00013787,2]
[329444300,1718354843210,-597.15,0.00010589,2]
[329444301,1718354843281,-250.0,0.00012439,2]
[329444302,1718354843331,-597.15,0.00012853,2]
[329444303,1718354843398,-170.18,0.00012878,2]
[329444304,1718354843496,-170.18,0.00012891,2]
[329444305,1718354843544,-861.24,0.00012896,2]
[329444306,1718354843587,-170.18,0.00012904,2]
[329444307,1718354843617,-150.0,0.00012904,2]
[329444308,1718354843652,-406.95,0.00012914,2]
[329444309,1718354843686,-170.18,0.00012917,2]
[329444310,1718354843723,-775.8,0.00012917,2]
[329444311,1718354843755,-250.0,0.00012925,2]
[329444312,1718354843790,-170.18,0.0001293,2]
[329444313,1718354843818,-282.96720669,0.00012932,2]
[329444314,1718354954205,-150.0,0.00010587,2]
[329444315,1718354954268,-300.0,0.00010587,2]
[329444316,1718354954356,-10494.22620572,0.00010588,2]
[329444317,1718354958148,-150.09662434,0.00011639,2]
[329444333,1718355034274,-155.0,0.00011639,2]
[329444334,1718355034293,-210.0,0.00011645,2]
[329444335,1718355034332,-293.0,0.0001281,2]
[329444336,1718355034350,-3.68277074,0.00012849,2]
[329444338,1718355034365,-474.37904849,0.00012849,2]
[329444340,1718355034390,-521.93818077,0.00012849,2]
[329444342,1718355034406,-217.03279331,0.00012932,2]
[329444343,1718355034424,-287.42726685,0.00012932,2]
[329444344,1718355034439,-1578.55756815,0.00012932,2]
[329444345,1718355034455,-309.20737586,0.00012932,2]
[329444346,1718355034475,-2553.17372,0.00012932,2]
[329444347,1718355035068,-16396.02060826,0.00012932,2]
[329444348,1718355035082,-15558.18637067,0.00012932,2]
[329444349,1718355035113,-170.18,0.00012943,2]
[329444350,1718355035126,-1206.59,0.00012943,2]
[329444351,1718355035142,-23900.0,0.00012962,2]
[329444352,1718355035166,-165.26,0.00012973,2]
[329444353,1718355035186,-154.61,0.00013018,2]
[329444354,1718355035224,-154.61,0.00013188,2]
[329444355,1718355035243,-996.84,0.00013188,2]
[329444356,1718355035272,-2355.93,0.00013223,2]
[329444357,1718355035308,-154.61,0.00013357,2]
[329444358,1718355035334,-499.99,0.00013393,2]
[329444359,1718355035347,-154.61,0.00013527,2]
[329444360,1718355035392,-150.99,0.00013563,2]
[329444361,1718355035417,-154.61,0.00013696,2]
[329444362,1718355035431,-192.66,0.00013699,2]
[329444363,1718355035449,-331.75,0.00013699,2]
[329444364,1718355035466,-2751.0,0.00013699,2]
[329444365,1718355035507,-1000.0,0.000137,2]
[329444366,1718355035521,-1049.28,0.00013787,2]
[329444367,1718355035544,-217.87543763,0.00013787,2]
[329444368,1718355035573,-4157.19176872,0.00013787,2]
[329444369,1718355035585,-500.0,0.00013787,2]
[329444370,1718355035615,-500.0,0.00013787,2]
[329444371,1718355035633,-500.0,0.00013787,2]
[329444372,1718355035648,-500.0,0.00013787,2]
[329444373,1718355035675,-500.0,0.00013787,2]
[329444374,1718355035718,-500.0,0.00013787,2]
[329444375,1718355035744,-500.0,0.00013787,2]
[329444376,1718355035757,-806.0,0.00013787,2]
[329444377,1718355035775,-1075.84932894,0.00013787,2]
[329444378,1718355035789,-373.3922,0.000138,2]
[329444379,1718355035801,-500.0,0.00013887,2]
[329444380,1718355035821,-500.0,0.00013888,2]
[329444381,1718355035833,-200.0,0.00013888,2]
[329444382,1718355035846,-243.89,0.0001389,3]
[329444383,1718355035866,-719.66768904,0.00013898,2]
[329444384,1718355035880,-156.76769233,0.00013898,2]
[329444385,1718355035890,-155.0,0.00013898,2]
[329444386,1718355035901,-287.01846402,0.00013898,2]
[329444388,1718355035925,-277.6074059,0.00013898,2]
[329444389,1718355035967,-171.69280167,0.00013898,2]
[329444390,1718355035991,-661.546,0.00013898,2]
[329444391,1718355036003,-2232.43203185,0.00013899,2]
[329444392,1718355036021,-844.56940814,0.000139,2]
[329444393,1718355036038,-15556.39713724,0.000139,2]
[329444394,1718355036058,-1295.8466,0.000139,2]
[329444395,1718355036081,-1000.0,0.000139,2]
[329444396,1718355036119,-1939.7571,0.000139,2]
[329444397,1718355036143,-100000.0,0.000139,2]
[329444398,1718355036163,-5507.6461,0.000139,2]
[329444399,1718355036181,-7500.0,0.000139,2]
[329444400,1718355036202,-193.88261943,0.000139,2]
[329444401,1718355036224,-189.03507252,0.000139,2]
[329444402,1718355036241,-1637.19010418,0.000139,2]
[329444403,1718355036264,-164.51180693,0.000139,2]
[329444404,1718355036285,-325.86225034,0.000139,2]
[329444405,1718355036296,-216.29,0.00013919,2]
[329444406,1718355036324,-216.29,0.00013923,2]
[329444407,1718355036336,-216.29,0.00013926,2]
[329444408,1718355036348,-216.29,0.0001393,2]
[329444409,1718355036368,-216.29,0.00013934,2]
[329444410,1718355036386,-216.29,0.00013937,2]
[329444411,1718355036413,-216.29,0.00013941,2]
[329444412,1718355036428,-216.29,0.00013945,2]
[329444413,1718355036449,-216.29,0.00013948,2]
[329444414,1718355036466,-216.29,0.00013952,2]
[329444415,1718355036481,-216.29,0.00013956,2]
[329444416,1718355036498,-216.29,0.00013959,2]
[329444417,1718355036514,-216.29,0.00013963,2]
[329444418,1718355036527,-216.29,0.00013967,2]
[329444419,1718355036554,-216.29,0.0001397,2]
[329444420,1718355036584,-216.29,0.00013974,2]
[329444421,1718355036597,-216.29,0.00013978,2]
[329444422,1718355036613,-216.29,0.00013981,2]
[329444423,1718355036635,-216.29,0.00013985,2]
[329444424,1718355036647,-216.29,0.00013989,2]
[329444425,1718355036662,-152.83,0.0001399,2]
[329444426,1718355036679,-552.98384426,0.00013998,2]
[329444427,1718355036701,-7544.96004909,0.00013998,2]
[329444428,1718355036711,-10979.27805314,0.00013998,2]
[329444429,1718355036726,-978.53852919,0.00013998,2]
[329444430,1718355036738,-3375.07812476,0.00013998,2]
[329444431,1718355036752,-718.83475834,0.00013998,2]
[329444432,1718355036806,-172.7696657,0.00013998,2]
[329444433,1718355036820,-10540.40471413,0.00013998,2]
[329444434,1718355036843,-155.0,0.00013998,2]
[329444435,1718355036878,-338.68648196,0.00013998,2]
[329444436,1718355036903,-170.66232196,0.00013998,2]
[329444437,1718355036924,-794.83271597,0.00013998,2]
[329444438,1718355036939,-209.02949711,0.00013998,2]
[329444439,1718355036971,-511.70591459,0.00013999,2]
[329444440,1718355036996,-22654.7548897,0.00013999,2]
[329444441,1718355037024,-790.85645005,0.00014,2]
[329444442,1718355037045,-897.95,0.00014,2]
[329444443,1718355037069,-482.99531256,0.00014,2]
[329444444,1718355037088,-7277.96471576,0.00014,2]
[329444445,1718355037269,-1935.23226309,0.00014,2]
[329444446,1718355037520,-49378.91094323,0.00014,2]
[329444447,1718355037544,-3674.28117892,0.00014,2]
[329444450,1718355041617,-584.08019702,0.00014,2]
[329444451,1718355041630,-14996.39036511,0.00014,2]
[329444452,1718355041644,-27584.70700085,0.00014,2]
[329444464,1718355045352,-526.41,0.00014,2]
[329444465,1718355045367,-110723.05412072,0.00014,2]
[329444466,1718355045385,-1086.34670665,0.00014,2]
[329444467,1718355046003,-2654.72704819,0.00014,2]
[329444468,1718355046022,-1421.277422,0.00014,2]
[329444469,1718355046038,-2265.80577983,0.00014,2]
[329444470,1718355046056,-522.13827496,0.00014,2]
[329444471,1718355046086,-424.71831729,0.00014,2]
[329444472,1718355046103,-391.95959978,0.00014,2]
[329444473,1718355046145,-892.19844599,0.00014,2]
[329444474,1718355046176,-1677.37907796,0.00014,2]
[329444475,1718355046200,-1538.76083681,0.00014,2]
[329444476,1718355046214,-754.3240493,0.00014,2]
[329444477,1718355046407,-285.43780332,0.00014,2]
[329444478,1718355046907,-1874.57460962,0.00014,2]
[329444479,1718355046948,-4746.74365263,0.00014,2]
[329444480,1718355046976,-553527.66861994,0.00014,2]
[329444481,1718355046991,-522.00656815,0.00014,2]
[329444488,1718355048347,-1967.32742453,0.00014,2]
[329444491,1718355048387,-344.62556429,0.00014,2]
[329444492,1718355048405,-2084.61684403,0.00014,2]
[329444493,1718355048426,-7121.5,0.00014,2]
[329444528,1718355049086,-287.85483469,0.00011639,2]
[329444532,1718355049129,-1848.68477119,0.00014,2]
[329444536,1718355049150,-835.2505,0.00014,2]
[329444540,1718355049165,-922.26269289,0.00014,2]
[329444573,1718355050128,-1692.15408531,0.00014,2]
[329444627,1718355983684,-942.89791342,0.00011446,2]
[329444628,1718355983732,-537.43,0.00011447,2]
[329444629,1718355983771,-708.41842212,0.00012029,2]
[329444630,1718355983808,-1398.51,0.00013344,2]
[329444631,1718355983852,-4350.96,0.00013463,2]
[329444632,1718355983920,-159.5,0.00013646,2]
[329444633,1718355983958,-725.88,0.00013699,2]
[329444634,1718355984004,-165.87,0.00013699,2]
[329444635,1718355984060,-150.0,0.0001371,2]
[329444636,1718355984120,-300.0,0.0001371,2]
[329444637,1718355984195,-537.43,0.00013711,2]
[329444638,1718355984235,-250.0,0.00013715,2]
[329444639,1718355984287,-150.99,0.00013715,2]
[329444640,1718355984363,-165.26,0.0001375,2]
[329444641,1718355984434,-159.54,0.0001381,2]
[329444642,1718355984499,-500.0,0.00013888,2]
[329444643,1718355984542,-200.0,0.00013888,2]
[329444644,1718355984601,-4898.7759,0.000139,2]
[329444645,1718355984640,-14260.0307091,0.000139,2]
[329444646,1718355984677,-325.86225033,0.000139,2]
[329444647,1718355984714,-273.259179,0.00013973,2]
[329444648,1718355984758,-152.88,0.0001399,2]
[329444649,1718355984814,-788.4898373,0.00013995,2]
[329444650,1718355984861,-2716.5951523,0.00013995,2]
[329444651,1718355984965,-1053.10914453,0.00013998,2]
[329444652,1718355985008,-2138.20030163,0.00013998,2]
[329444653,1718355985058,-1134.37435853,0.00013998,2]
[329444654,1718355985101,-269.27586488,0.00013998,2]
[329444655,1718355985162,-2046.44367817,0.00013998,2]
[329444656,1718355985225,-1625.30453105,0.00013999,2]
[329444657,1718355985263,-506.80366576,0.00013999,2]
[329444658,1718355985300,-669.96579635,0.00013999,2]
[329444659,1718355985357,-155.0,0.00013999,2]
[329444660,1718355985393,-1563.81,0.00013999,2]
[329444661,1718355985445,-341.1372764,0.00013999,2]
[329444662,1718355985491,-33027.99601913,0.00014,2]
[329444663,1718356037210,-171.70591057,0.000139,2]
[329444664,1718356052184,-396.91377063,0.000139,2]
[329444698,1718356232869,-885.81525513,0.00013899,2]
[329444699,1718356232882,-1039.5963,0.000139,2]